[Event "Early-Titled-Tuesday-Blitz-September-05-2023"]
[Site "Chess.com"]
[Date "2023.09.05"]
[Round "7"]
[White "emeli_chess"]
[Black "Iskusnyh"]
[Result "0-1"]
[WhiteElo "2368"]
[BlackElo "2618"]
[TimeControl "180+1"]
[EndTime "9:17:31 PDT"]
[Termination "Iskusnyh won by resignation"]

1. d4 {[%clk 0:03:00.9]} 1... d5 {[%clk 0:02:59.2]} 2. c4 {[%clk 0:02:59.2]}
2... c6 {[%clk 0:02:58.5]} 3. Nc3 {[%clk 0:02:58.8]} 3... Nf6 {[%clk 0:02:58.1]}
4. e3 {[%clk 0:02:59.1]} 4... e6 {[%clk 0:02:56.2]} 5. Nf3 {[%clk 0:02:58.9]}
5... a6 {[%clk 0:02:53.8]} 6. c5 {[%clk 0:02:58.2]} 6... Nbd7 {[%clk 0:02:51.5]}
7. Bd3 {[%clk 0:02:53.8]} 7... g6 {[%clk 0:02:49.4]} 8. O-O {[%clk 0:02:49.5]}
8... Bg7 {[%clk 0:02:48]} 9. e4 {[%clk 0:02:19.5]} 9... dxe4 {[%clk 0:02:45.6]}
10. Nxe4 {[%clk 0:02:19.6]} 10... Nxe4 {[%clk 0:02:43.7]} 11. Bxe4 {[%clk
0:02:19.8]} 11... O-O {[%clk 0:02:43.9]} 12. Bf4 {[%clk 0:02:12.5]} 12... Re8
{[%clk 0:02:06.8]} 13. Bd6 {[%clk 0:02:06.6]} 13... Bf8 {[%clk 0:01:47.7]} 14.
Bxf8 {[%clk 0:02:04.6]} 14... Rxf8 {[%clk 0:01:47]} 15. Qe2 {[%clk 0:02:03.3]}
15... Qf6 {[%clk 0:01:42.7]} 16. Bc2 {[%clk 0:01:58.1]} 16... b6 {[%clk
0:01:29.2]} 17. cxb6 {[%clk 0:01:39.4]} 17... Rb8 {[%clk 0:01:27.9]} 18. b4
{[%clk 0:01:32.6]} 18... Rxb6 {[%clk 0:01:19.7]} 19. a3 {[%clk 0:01:32]} 19...
a5 {[%clk 0:01:17.1]} 20. bxa5 {[%clk 0:01:28.6]} 20... Ba6 {[%clk 0:01:07.4]}
21. Bd3 {[%clk 0:01:28.6]} 21... Bxd3 {[%clk 0:01:07.2]} 22. Qxd3 {[%clk
0:01:29]} 22... Rb5 {[%clk 0:01:07.5]} 23. a4 {[%clk 0:01:19.7]} 23... Rxa5
{[%clk 0:01:06.4]} 24. Rfc1 {[%clk 0:01:13.6]} 24... c5 {[%clk 0:01:03.8]} 25.
d5 {[%clk 0:01:07.6]} 25... c4 {[%clk 0:00:47.9]} 26. Qxc4 {[%clk 0:01:04]}
26... Rxd5 {[%clk 0:00:45.2]} 27. a5 {[%clk 0:01:00.4]} 27... Rc5 {[%clk
0:00:45.1]} 28. Qa4 {[%clk 0:00:57.8]} 28... Rfc8 {[%clk 0:00:40.6]} 29. Rxc5
{[%clk 0:00:56.8]} 29... Nxc5 {[%clk 0:00:38.9]} 30. Qa3 {[%clk 0:00:55.3]}
30... Na6 {[%clk 0:00:35.2]} 31. h4 {[%clk 0:00:51.8]} 31... Qc3 {[%clk
0:00:31.2]} 32. Qxc3 {[%clk 0:00:45]} 32... Rxc3 {[%clk 0:00:30.6]} 33. h5
{[%clk 0:00:43.6]} 33... gxh5 {[%clk 0:00:29.7]} 34. Rb1 {[%clk 0:00:38.3]}
34... Ra3 {[%clk 0:00:27.7]} 35. Rb5 {[%clk 0:00:38.3]} 35... Nc7 {[%clk
0:00:21.9]} 36. Rxh5 {[%clk 0:00:36.9]} 36... Nd5 {[%clk 0:00:21.3]} 37. Ng5
{[%clk 0:00:22.1]} 37... Nf6 {[%clk 0:00:17.8]} 38. Rh3 {[%clk 0:00:20]} 38...
Rxa5 {[%clk 0:00:16.8]} 39. f4 {[%clk 0:00:19.4]} 39... Ng4 {[%clk 0:00:15.9]}
40. g3 {[%clk 0:00:18.3]} 40... h6 {[%clk 0:00:14.9]} 41. Ne4 {[%clk 0:00:17.8]}
41... f5 {[%clk 0:00:13.7]} 42. Nd6 {[%clk 0:00:17.6]} 42... Ra1+ {[%clk
0:00:13.1]} 43. Kg2 {[%clk 0:00:17.6]} 43... Ra2+ {[%clk 0:00:13.4]} 44. Kg1
{[%clk 0:00:17.7]} 44... Kg7 {[%clk 0:00:13]} 45. Rh1 {[%clk 0:00:16.6]} 45...
Ra1+ {[%clk 0:00:11.7]} 46. Kg2 {[%clk 0:00:17]} 46... Ra2+ {[%clk 0:00:12.4]}
47. Kg1 {[%clk 0:00:17.4]} 47... Ne3 {[%clk 0:00:12.7]} 48. Rh2 {[%clk
0:00:16.4]} 48... Ra1+ {[%clk 0:00:12.9]} 49. Kf2 {[%clk 0:00:16.6]} 49... Ng4+
{[%clk 0:00:13.8]} 50. Kg2 {[%clk 0:00:16.8]} 50... Nxh2 {[%clk 0:00:14.7]} 51.
Kxh2 {[%clk 0:00:17.3]} 51... Kg6 {[%clk 0:00:14]} 52. Kh3 {[%clk 0:00:17.7]}
52... Rh1+ {[%clk 0:00:13.5]} 53. Kg2 {[%clk 0:00:17.8]} 53... Rd1 {[%clk
0:00:14.4]} 54. Nc4 {[%clk 0:00:17.8]} 54... Re1 {[%clk 0:00:12.5]} 55. Kf2
{[%clk 0:00:17.9]} 55... Re4 {[%clk 0:00:12.2]} 56. Nd6 {[%clk 0:00:17.6]} 56...
Ra4 {[%clk 0:00:11.2]} 57. Kf3 {[%clk 0:00:17.5]} 57... Kf6 {[%clk 0:00:10.8]}
58. Nb5 {[%clk 0:00:17.7]} 58... Ra1 {[%clk 0:00:09.5]} 59. Nc3 {[%clk
0:00:17.5]} 59... Ra3 {[%clk 0:00:09]} 0-1

[Event "Early-Titled-Tuesday-Blitz-September-05-2023"]
[Site "Chess.com"]
[Date "2023.09.05"]
[Round "7"]
[White "KorolDimitriy75"]
[Black "AdrianaPalao"]
[Result "1-0"]
[WhiteElo "2315"]
[BlackElo "2044"]
[TimeControl "180+1"]
[EndTime "9:17:32 PDT"]
[Termination "KorolDimitriy75 won by checkmate"]

1. d4 {[%clk 0:03:00.9]} 1... Nf6 {[%clk 0:02:59.9]} 2. c4 {[%clk 0:03:01.3]}
2... e6 {[%clk 0:03:00.2]} 3. Nc3 {[%clk 0:03:01.6]} 3... b6 {[%clk 0:03:00]} 4.
e4 {[%clk 0:03:01.1]} 4... d6 {[%clk 0:02:59.3]} 5. Qc2 {[%clk 0:02:56.3]} 5...
Bb7 {[%clk 0:02:59.6]} 6. Nf3 {[%clk 0:02:47.1]} 6... Be7 {[%clk 0:03:00]} 7.
Be2 {[%clk 0:02:44.7]} 7... O-O {[%clk 0:03:00.5]} 8. O-O {[%clk 0:02:44.5]}
8... Nbd7 {[%clk 0:03:01.4]} 9. Re1 {[%clk 0:02:40.9]} 9... c5 {[%clk
0:03:01.6]} 10. b3 {[%clk 0:02:37.4]} 10... Qc7 {[%clk 0:02:57.9]} 11. Bb2
{[%clk 0:02:32.2]} 11... cxd4 {[%clk 0:02:58.8]} 12. Nxd4 {[%clk 0:02:31.9]}
12... Nc5 {[%clk 0:02:58.6]} 13. f3 {[%clk 0:02:30.5]} 13... a6 {[%clk
0:02:50.7]} 14. Rad1 {[%clk 0:02:30.3]} 14... Rac8 {[%clk 0:02:47.3]} 15. Bf1
{[%clk 0:02:28.7]} 15... Ncd7 {[%clk 0:02:41.6]} 16. Qf2 {[%clk 0:02:24.2]}
16... Ne5 {[%clk 0:02:35]} 17. h3 {[%clk 0:02:15.5]} 17... Ng6 {[%clk
0:02:23.4]} 18. Rd2 {[%clk 0:01:35.7]} 18... d5 {[%clk 0:02:16.1]} 19. exd5
{[%clk 0:01:33.3]} 19... exd5 {[%clk 0:02:15.6]} 20. cxd5 {[%clk 0:01:05.5]}
20... Nxd5 {[%clk 0:02:16.5]} 21. Nxd5 {[%clk 0:01:02.4]} 21... Bxd5 {[%clk
0:02:09.1]} 22. Nf5 {[%clk 0:00:58]} 22... Bc5 {[%clk 0:01:58.7]} 23. Bd4 {[%clk
0:00:57.1]} 23... Bb4 {[%clk 0:01:48.4]} 24. Bxg7 {[%clk 0:00:31.4]} 24... Bxd2
{[%clk 0:01:19.5]} 25. Qxd2 {[%clk 0:00:32.3]} 25... Be6 {[%clk 0:01:15.6]} 26.
Bxf8 {[%clk 0:00:31.5]} 26... Rxf8 {[%clk 0:01:13.8]} 27. Nd4 {[%clk 0:00:21.5]}
27... Bc8 {[%clk 0:01:05.8]} 28. Qf2 {[%clk 0:00:19.4]} 28... Rd8 {[%clk
0:01:05.1]} 29. Ne2 {[%clk 0:00:16]} 29... Rd2 {[%clk 0:01:02.1]} 30. Qe3 {[%clk
0:00:15.2]} 30... Rd8 {[%clk 0:01:01.8]} 31. Nd4 {[%clk 0:00:12.8]} 31... Bd7
{[%clk 0:00:59.9]} 32. Ne2 {[%clk 0:00:11.4]} 32... Re8 {[%clk 0:00:59.8]} 33.
Qf2 {[%clk 0:00:11]} 33... Bb5 {[%clk 0:00:59.7]} 34. Rc1 {[%clk 0:00:10.9]}
34... Qf4 {[%clk 0:00:58.3]} 35. Nxf4 {[%clk 0:00:09.7]} 35... Nxf4 {[%clk
0:00:58.1]} 36. Bxb5 {[%clk 0:00:07.7]} 36... axb5 {[%clk 0:00:57.3]} 37. Re1
{[%clk 0:00:07.5]} 37... Rd8 {[%clk 0:00:56.8]} 38. Re4 {[%clk 0:00:07]} 38...
Rd1+ {[%clk 0:00:54.4]} 39. Kh2 {[%clk 0:00:06.9]} 39... Ng6 {[%clk 0:00:54.5]}
40. Qg3 {[%clk 0:00:07.2]} 40... Rd8 {[%clk 0:00:53.7]} 41. h4 {[%clk
0:00:06.6]} 41... h5 {[%clk 0:00:52.8]} 42. Re5 {[%clk 0:00:06.9]} 42... Kg7
{[%clk 0:00:51.8]} 43. Rxh5 {[%clk 0:00:06.9]} 43... Rd7 {[%clk 0:00:50.4]} 44.
Rg5 {[%clk 0:00:06.9]} 44... Kh6 {[%clk 0:00:39.2]} 45. h5 {[%clk 0:00:04.3]}
45... Ne7 {[%clk 0:00:32.7]} 46. Re5 {[%clk 0:00:03.8]} 46... Kh7 {[%clk
0:00:26]} 47. Qg5 {[%clk 0:00:02.8]} 47... Nc6 {[%clk 0:00:23.8]} 48. Re8 {[%clk
0:00:02.6]} 48... Rd6 {[%clk 0:00:05.9]} 49. Qg8+ {[%clk 0:00:03.5]} 49... Kh6
{[%clk 0:00:06]} 50. Qxf7 {[%clk 0:00:04.1]} 50... Ne5 {[%clk 0:00:05.1]} 51.
Rh8+ {[%clk 0:00:04]} 51... Kg5 {[%clk 0:00:04.6]} 52. Rg8+ {[%clk 0:00:04.8]}
52... Kh6 {[%clk 0:00:03.5]} 53. Qg7+ {[%clk 0:00:05.2]} 53... Kxh5 {[%clk
0:00:02.5]} 54. Qg5# {[%clk 0:00:06.1]} 1-0

[Event "Early-Titled-Tuesday-Blitz-September-05-2023"]
[Site "Chess.com"]
[Date "2023.09.05"]
[Round "7"]
[White "cthulhuuu"]
[Black "Nf3c5"]
[Result "0-1"]
[WhiteElo "2455"]
[BlackElo "2606"]
[TimeControl "180+1"]
[EndTime "9:17:34 PDT"]
[Termination "Nf3c5 won on time"]

1. e4 {[%clk 0:03:00]} 1... e6 {[%clk 0:02:56.9]} 2. d3 {[%clk 0:03:00]} 2... c5
{[%clk 0:02:55.9]} 3. Nf3 {[%clk 0:02:59.8]} 3... Nc6 {[%clk 0:02:56.4]} 4. g3
{[%clk 0:02:59.9]} 4... Nge7 {[%clk 0:02:56.3]} 5. Bg2 {[%clk 0:02:59.9]} 5...
g6 {[%clk 0:02:56.6]} 6. O-O {[%clk 0:02:59.5]} 6... Bg7 {[%clk 0:02:57.2]} 7.
Re1 {[%clk 0:02:59.8]} 7... d6 {[%clk 0:02:56.5]} 8. c3 {[%clk 0:02:59.3]} 8...
e5 {[%clk 0:02:56.4]} 9. Be3 {[%clk 0:02:52.6]} 9... O-O {[%clk 0:02:54.7]} 10.
d4 {[%clk 0:02:53.1]} 10... exd4 {[%clk 0:02:54.4]} 11. cxd4 {[%clk 0:02:54]}
11... Bg4 {[%clk 0:02:54.9]} 12. dxc5 {[%clk 0:02:44.4]} 12... dxc5 {[%clk
0:02:06.1]} 13. Nc3 {[%clk 0:02:33.7]} 13... Nd4 {[%clk 0:02:03.1]} 14. h3
{[%clk 0:02:28]} 14... Bxf3 {[%clk 0:01:43.4]} 15. Bxf3 {[%clk 0:02:28.7]} 15...
Qb6 {[%clk 0:01:39]} 16. Na4 {[%clk 0:02:17.5]} 16... Qb4 {[%clk 0:01:28.2]} 17.
Bg2 {[%clk 0:02:16.2]} 17... Rad8 {[%clk 0:01:19.2]} 18. a3 {[%clk 0:01:45.3]}
18... Qb5 {[%clk 0:01:13.5]} 19. Nc3 {[%clk 0:01:25.1]} 19... Qxb2 {[%clk
0:01:09.1]} 20. Nd5 {[%clk 0:01:24.9]} 20... Nxd5 {[%clk 0:01:01.6]} 21. exd5
{[%clk 0:01:25.4]} 21... Qxa1 {[%clk 0:00:50.3]} 22. Qxa1 {[%clk 0:01:18.4]}
22... Ne2+ {[%clk 0:00:48.5]} 23. Rxe2 {[%clk 0:00:49]} 23... Bxa1 {[%clk
0:00:49.4]} 24. Bxc5 {[%clk 0:00:48.7]} 24... Rfe8 {[%clk 0:00:48.8]} 25. Rd2
{[%clk 0:00:47.8]} 25... b6 {[%clk 0:00:48.1]} 26. Be3 {[%clk 0:00:48]} 26...
Be5 {[%clk 0:00:46.7]} 27. Bg5 {[%clk 0:00:35.7]} 27... f6 {[%clk 0:00:46]} 28.
Bh6 {[%clk 0:00:34.9]} 28... Bd6 {[%clk 0:00:44.3]} 29. h4 {[%clk 0:00:33.4]}
29... Re1+ {[%clk 0:00:35.2]} 30. Kh2 {[%clk 0:00:32.8]} 30... Rde8 {[%clk
0:00:33.8]} 31. Bf3 {[%clk 0:00:31.8]} 31... Rc8 {[%clk 0:00:32.4]} 32. a4
{[%clk 0:00:29.4]} 32... Rc3 {[%clk 0:00:32]} 33. Kg2 {[%clk 0:00:28.5]} 33...
Kf7 {[%clk 0:00:25.2]} 34. Bf4 {[%clk 0:00:22.7]} 34... Bxf4 {[%clk 0:00:22.8]}
35. gxf4 {[%clk 0:00:23.6]} 35... Ke7 {[%clk 0:00:17.2]} 36. d6+ {[%clk
0:00:23.1]} 36... Kd7 {[%clk 0:00:17.3]} 37. h5 {[%clk 0:00:22.9]} 37... f5
{[%clk 0:00:17.1]} 38. hxg6 {[%clk 0:00:22.6]} 38... hxg6 {[%clk 0:00:18]} 39.
Be2 {[%clk 0:00:22.1]} 39... Rxe2 {[%clk 0:00:09.5]} 40. Rxe2 {[%clk 0:00:22.8]}
40... Kxd6 {[%clk 0:00:10.4]} 41. Re8 {[%clk 0:00:22.1]} 41... Rc4 {[%clk
0:00:10.3]} 42. a5 {[%clk 0:00:21.5]} 42... bxa5 {[%clk 0:00:07.4]} 43. Rg8
{[%clk 0:00:21.7]} 43... Kc5 {[%clk 0:00:07.1]} 44. Rxg6 {[%clk 0:00:21.6]}
44... Kb5 {[%clk 0:00:08]} 45. Rf6 {[%clk 0:00:16.8]} 45... Rxf4 {[%clk
0:00:07.8]} 46. Kg3 {[%clk 0:00:17]} 46... Rg4+ {[%clk 0:00:08.2]} 47. Kf3
{[%clk 0:00:16.8]} 47... Rg5 {[%clk 0:00:07.4]} 48. Kf4 {[%clk 0:00:16.7]} 48...
Rh5 {[%clk 0:00:07.8]} 49. Rf8 {[%clk 0:00:11.5]} 49... a4 {[%clk 0:00:07.6]}
50. Rb8+ {[%clk 0:00:11.1]} 50... Ka5 {[%clk 0:00:08.1]} 51. Rb2 {[%clk
0:00:04.5]} 51... a3 {[%clk 0:00:08.1]} 52. Rb3 {[%clk 0:00:04.9]} 52... Ka4
{[%clk 0:00:08.2]} 53. Rb7 {[%clk 0:00:05.8]} 53... a5 {[%clk 0:00:08.8]} 54.
Rb1 {[%clk 0:00:03]} 54... a2 {[%clk 0:00:09.1]} 55. Ra1 {[%clk 0:00:02.2]}
55... Ka3 {[%clk 0:00:09.5]} 56. f3 {[%clk 0:00:01.8]} 56... Kb2 {[%clk
0:00:09.7]} 0-1

[Event "Early-Titled-Tuesday-Blitz-September-05-2023"]
[Site "Chess.com"]
[Date "2023.09.05"]
[Round "7"]
[White "Hoshka"]
[Black "Apocalyps999"]
[Result "0-1"]
[WhiteElo "2038"]
[BlackElo "2304"]
[TimeControl "180+1"]
[EndTime "9:17:35 PDT"]
[Termination "Apocalyps999 won on time"]

1. d4 {[%clk 0:03:00]} 1... d5 {[%clk 0:02:57.4]} 2. c4 {[%clk 0:02:59.4]} 2...
e6 {[%clk 0:02:57]} 3. g3 {[%clk 0:02:59]} 3... Nf6 {[%clk 0:02:54.5]} 4. Bg2
{[%clk 0:02:58.8]} 4... Bb4+ {[%clk 0:02:54.7]} 5. Bd2 {[%clk 0:02:58.4]} 5...
Be7 {[%clk 0:02:54.2]} 6. Nf3 {[%clk 0:02:57.8]} 6... O-O {[%clk 0:02:54]} 7.
O-O {[%clk 0:02:56.7]} 7... dxc4 {[%clk 0:02:53.2]} 8. Qc2 {[%clk 0:02:55.5]}
8... a6 {[%clk 0:02:47.8]} 9. Qxc4 {[%clk 0:02:53.7]} 9... b5 {[%clk 0:02:46.9]}
10. Qc2 {[%clk 0:02:53.6]} 10... Bb7 {[%clk 0:02:45.9]} 11. Rc1 {[%clk 0:02:54]}
11... c6 {[%clk 0:02:33.6]} 12. Bf4 {[%clk 0:02:39.2]} 12... Nbd7 {[%clk
0:02:29.4]} 13. Nbd2 {[%clk 0:02:38.3]} 13... Nb6 {[%clk 0:02:24.7]} 14. Nb3
{[%clk 0:02:35.6]} 14... Nfd5 {[%clk 0:02:17.9]} 15. Ne5 {[%clk 0:02:26.4]}
15... Rc8 {[%clk 0:02:09.7]} 16. Nd3 {[%clk 0:02:13.8]} 16... Nxf4 {[%clk
0:02:06.1]} 17. gxf4 {[%clk 0:02:13.2]} 17... Nd5 {[%clk 0:02:02.1]} 18. e3
{[%clk 0:02:11.4]} 18... Qb6 {[%clk 0:01:40.8]} 19. Nbc5 {[%clk 0:02:08.4]}
19... Rfd8 {[%clk 0:01:40.7]} 20. a4 {[%clk 0:01:49.2]} 20... b4 {[%clk
0:01:37.6]} 21. Qc4 {[%clk 0:01:37.6]} 21... a5 {[%clk 0:01:31]} 22. Nxb7 {[%clk
0:01:35.8]} 22... Qxb7 {[%clk 0:01:28.2]} 23. Nc5 {[%clk 0:01:33.3]} 23... Bxc5
{[%clk 0:01:26.6]} 24. Qxc5 {[%clk 0:01:33.1]} 24... Qa6 {[%clk 0:01:22.8]} 25.
Bf1 {[%clk 0:01:31.1]} 25... Qa8 {[%clk 0:01:06.5]} 26. Rc2 {[%clk 0:01:25.8]}
26... h6 {[%clk 0:00:50.4]} 27. Rac1 {[%clk 0:01:25]} 27... Kh8 {[%clk
0:00:42.2]} 28. Bd3 {[%clk 0:01:12.5]} 28... Rc7 {[%clk 0:00:34.8]} 29. Be4
{[%clk 0:01:03.9]} 29... Qa6 {[%clk 0:00:22]} 30. Qc4 {[%clk 0:00:45.7]} 30...
Qb6 {[%clk 0:00:16.3]} 31. Kh1 {[%clk 0:00:36.8]} 31... f5 {[%clk 0:00:16.3]}
32. Bf3 {[%clk 0:00:26]} 32... Rd6 {[%clk 0:00:16.3]} 33. Qc5 {[%clk 0:00:22.5]}
33... Qxc5 {[%clk 0:00:14.9]} 34. Rxc5 {[%clk 0:00:22.2]} 34... Kg8 {[%clk
0:00:12.1]} 35. Rxa5 {[%clk 0:00:21.6]} 35... Kf7 {[%clk 0:00:11.5]} 36. Rac5
{[%clk 0:00:19.3]} 36... Ke7 {[%clk 0:00:10.9]} 37. a5 {[%clk 0:00:16.6]} 37...
Kd7 {[%clk 0:00:11.1]} 38. Bxd5 {[%clk 0:00:14.9]} 38... Rxd5 {[%clk 0:00:10.3]}
39. Kg2 {[%clk 0:00:10.2]} 39... Ra7 {[%clk 0:00:09.6]} 40. Rxd5+ {[%clk
0:00:08.5]} 40... exd5 {[%clk 0:00:09.5]} 41. Rc5 {[%clk 0:00:07.8]} 41... Kd6
{[%clk 0:00:09.7]} 42. Kf3 {[%clk 0:00:07.2]} 42... Ra8 {[%clk 0:00:09.7]} 43.
Ke2 {[%clk 0:00:07]} 43... g5 {[%clk 0:00:10]} 44. fxg5 {[%clk 0:00:05.7]} 44...
hxg5 {[%clk 0:00:10.9]} 45. Kd3 {[%clk 0:00:05.5]} 45... Rh8 {[%clk 0:00:10.8]}
46. a6 {[%clk 0:00:04.8]} 46... Rxh2 {[%clk 0:00:10.7]} 47. Ra5 {[%clk
0:00:04.6]} 47... Rh8 {[%clk 0:00:10.9]} 48. a7 {[%clk 0:00:01.7]} 48... Ra8
{[%clk 0:00:11.1]} 49. Kc2 {[%clk 0:00:02.3]} 49... Kc7 {[%clk 0:00:11.3]} 50.
Kb3 {[%clk 0:00:02.5]} 50... Kb6 {[%clk 0:00:11.8]} 51. Kxb4 {[%clk 0:00:02.5]}
51... Rxa7 {[%clk 0:00:12]} 52. Rxa7 {[%clk 0:00:02.5]} 52... Kxa7 {[%clk
0:00:12.9]} 53. Kc5 {[%clk 0:00:02.5]} 53... Kb7 {[%clk 0:00:13.2]} 54. Kd6
{[%clk 0:00:01.6]} 54... f4 {[%clk 0:00:12.8]} 0-1

[Event "Early-Titled-Tuesday-Blitz-September-05-2023"]
[Site "Chess.com"]
[Date "2023.09.05"]
[Round "7"]
[White "MarcoRiehle"]
[Black "Duhless"]
[Result "1-0"]
[WhiteElo "2815"]
[BlackElo "2994"]
[TimeControl "180+1"]
[EndTime "9:17:41 PDT"]
[Termination "MarcoRiehle won on time"]

1. e4 {[%clk 0:03:00.9]} 1... Nc6 {[%clk 0:02:59.1]} 2. Nf3 {[%clk 0:03:00.5]}
2... e5 {[%clk 0:02:58.6]} 3. Bc4 {[%clk 0:02:59.9]} 3... Nf6 {[%clk 0:02:59]}
4. d4 {[%clk 0:03:00.3]} 4... exd4 {[%clk 0:02:58.4]} 5. O-O {[%clk 0:03:00.9]}
5... d6 {[%clk 0:02:55.7]} 6. Nxd4 {[%clk 0:03:00.3]} 6... Be7 {[%clk
0:02:55.9]} 7. Nxc6 {[%clk 0:02:59.9]} 7... bxc6 {[%clk 0:02:56.4]} 8. Nc3
{[%clk 0:03:00.5]} 8... O-O {[%clk 0:02:56.9]} 9. Bb3 {[%clk 0:02:53.5]} 9...
Re8 {[%clk 0:02:55.3]} 10. Re1 {[%clk 0:02:51.7]} 10... Nd7 {[%clk 0:02:53.5]}
11. Be3 {[%clk 0:02:51.1]} 11... Bf6 {[%clk 0:02:52.7]} 12. h3 {[%clk
0:02:48.4]} 12... Bxc3 {[%clk 0:02:43.8]} 13. bxc3 {[%clk 0:02:48.1]} 13... Rxe4
{[%clk 0:02:44.5]} 14. Qf3 {[%clk 0:02:40.8]} 14... d5 {[%clk 0:02:37.4]} 15.
Bd4 {[%clk 0:02:32.6]} 15... Rxe1+ {[%clk 0:02:33.3]} 16. Rxe1 {[%clk
0:02:33.5]} 16... Nf8 {[%clk 0:02:33.7]} 17. Qg3 {[%clk 0:02:28.6]} 17... Ng6
{[%clk 0:02:33.2]} 18. h4 {[%clk 0:02:13.1]} 18... h5 {[%clk 0:02:32.8]} 19. c4
{[%clk 0:02:00.9]} 19... dxc4 {[%clk 0:02:19.6]} 20. Bxc4 {[%clk 0:02:01]} 20...
Qxd4 {[%clk 0:02:08.2]} 21. Qxg6 {[%clk 0:01:59.3]} 21... Be6 {[%clk 0:01:40.5]}
22. Bxe6 {[%clk 0:01:53.4]} 22... fxe6 {[%clk 0:01:40.6]} 23. Qxe6+ {[%clk
0:01:50.7]} 23... Kh8 {[%clk 0:01:40.9]} 24. Re4 {[%clk 0:01:21.1]} 24... Qd1+
{[%clk 0:01:39.9]} 25. Kh2 {[%clk 0:01:21.2]} 25... Rf8 {[%clk 0:01:39.5]} 26.
f3 {[%clk 0:01:18]} 26... Qd6+ {[%clk 0:01:20]} 27. Re5 {[%clk 0:00:56.5]} 27...
Qxe6 {[%clk 0:01:11.2]} 28. Rxe6 {[%clk 0:00:56.6]} 28... Rf5 {[%clk 0:01:11.9]}
29. Rxc6 {[%clk 0:00:54.8]} 29... Ra5 {[%clk 0:01:11.7]} 30. Rxc7 {[%clk
0:00:54.2]} 30... Rxa2 {[%clk 0:01:11.1]} 31. Rc5 {[%clk 0:00:54.2]} 31... g6
{[%clk 0:01:10.6]} 32. Rc7 {[%clk 0:00:54.6]} 32... a5 {[%clk 0:01:03.3]} 33.
Kg3 {[%clk 0:00:54.9]} 33... Rb2 {[%clk 0:00:58.9]} 34. Kf4 {[%clk 0:00:53.1]}
34... Rb5 {[%clk 0:00:52]} 35. c4 {[%clk 0:00:52.1]} 35... Rf5+ {[%clk
0:00:51.7]} 36. Ke4 {[%clk 0:00:51.2]} 36... Kg8 {[%clk 0:00:52.2]} 37. c5
{[%clk 0:00:34.7]} 37... a4 {[%clk 0:00:35.7]} 38. Kd4 {[%clk 0:00:28]} 38...
Kf8 {[%clk 0:00:35]} 39. Ra7 {[%clk 0:00:27.4]} 39... Ke8 {[%clk 0:00:30.6]} 40.
Kc4 {[%clk 0:00:23.9]} 40... Rf4+ {[%clk 0:00:25.2]} 41. Kb5 {[%clk 0:00:24]}
41... Rxh4 {[%clk 0:00:26]} 42. Rxa4 {[%clk 0:00:23.9]} 42... Rh1 {[%clk
0:00:25.1]} 43. c6 {[%clk 0:00:17.5]} 43... Ke7 {[%clk 0:00:11.6]} 44. Rd4
{[%clk 0:00:09.8]} 44... Rc1 {[%clk 0:00:08.6]} 45. Rd2 {[%clk 0:00:07.2]} 45...
g5 {[%clk 0:00:07.1]} 46. Kb6 {[%clk 0:00:07.1]} 46... Rb1+ {[%clk 0:00:06.5]}
47. Ka7 {[%clk 0:00:07.1]} 47... Ra1+ {[%clk 0:00:07]} 48. Kb7 {[%clk
0:00:07.2]} 48... Rb1+ {[%clk 0:00:07.1]} 49. Kc8 {[%clk 0:00:07.7]} 49... h4
{[%clk 0:00:05.8]} 50. c7 {[%clk 0:00:07.9]} 50... Rb4 {[%clk 0:00:05.9]} 51.
Re2+ {[%clk 0:00:08]} 51... Kf7 {[%clk 0:00:05]} 52. Kd7 {[%clk 0:00:06.2]}
52... Rd4+ {[%clk 0:00:05.4]} 53. Kc6 {[%clk 0:00:06.6]} 53... Rc4+ {[%clk
0:00:06.3]} 54. Kd6 {[%clk 0:00:07.3]} 54... Rc1 {[%clk 0:00:04.6]} 55. Re5
{[%clk 0:00:07.1]} 55... Kf6 {[%clk 0:00:04.7]} 56. Rc5 {[%clk 0:00:06.9]} 1-0